fUST/lending_fUST_20250407
["ID","MTS","AMOUNT","RATE_DAILY","PERIOD"]
[357330753,1744007478361,-500.0,0.00040273,7]
[357330754,1744007478371,-500.0,0.00040273,7]
[357330755,1744007478380,-1501.09,0.00040273,2]
[357330756,1744007478391,-586.05,0.00040273,7]
[357330757,1744007478400,-722.91,0.00040273,7]
[357330758,1744007478410,-1033.34,0.00040273,7]
[357330759,1744007478420,-155.94098993,0.00040273,7]
[357330760,1744007478429,-500.0,0.00040273,7]
[357330761,1744007478439,-539.13364436,0.00040273,7]
[357330762,1744007478449,-522.77,0.00040273,7]
[357330763,1744007478459,-500.0,0.00040273,7]
[357330764,1744007478468,-571.83,0.00040273,7]
[357330765,1744007478478,-500.0,0.00040273,7]
[357330766,1744007478488,-549.43760392,0.00040273,7]
[357330767,1744007478498,-523.84,0.00040273,7]
[357330768,1744007478508,-500.0,0.00040273,7]
[357330769,1744007478518,-500.0,0.00040273,7]
[357330770,1744007478679,-500.0,0.00040273,7]
[357330771,1744007478690,-500.0,0.00040273,7]
[357330772,1744007478701,-833.69,0.00040273,7]
[357330773,1744007478711,-500.0,0.00040273,7]
[357330774,1744007478722,-2025.36,0.00040273,7]
[357330775,1744007478732,-500.0,0.00040273,7]
[357330776,1744007478742,-500.0,0.00040273,7]
[357330777,1744007478752,-1592.74,0.00040273,7]
[357330778,1744007478763,-603.67,0.00040273,7]
[357330779,1744007478774,-500.0,0.00040273,7]
[357330780,1744007478787,-2054.09,0.00040273,7]
[357330781,1744007478798,-500.0,0.00040273,7]
[357330782,1744007478809,-500.0,0.00040273,7]
[357330783,1744007478820,-4027.87,0.00040273,7]
[357330784,1744007478830,-1703.64,0.00040273,7]
[357330785,1744007478840,-1206.14,0.00040273,7]
[357330786,1744007478851,-2750.5,0.00040273,7]
[357330787,1744007478861,-5383.4,0.00040273,7]
[357330788,1744007478872,-539.87683658,0.00040273,7]
[357330789,1744007478883,-500.0,0.00040273,7]
[357330790,1744007478894,-1044.92,0.00040273,7]
[357330791,1744007478905,-752.29,0.00040273,7]
[357330792,1744007478915,-5668.81,0.00040273,7]
[357330793,1744007478925,-16324.2,0.00040273,7]
[357330794,1744007478935,-556.96,0.00040273,7]
[357330795,1744007478946,-9467.87,0.00040273,7]
[357330796,1744007478955,-500.0,0.00040273,7]
[357330797,1744007478966,-704.24,0.00040273,7]
[357330798,1744007478976,-427.75587348,0.00040273,7]
[357330799,1744007478986,-2032.66,0.00040273,7]
[357330800,1744007478997,-7826.43,0.00040273,7]
[357330801,1744007479006,-284.38026067,0.00040273,7]
[357330802,1744007479016,-627.1,0.00040273,7]
[357330804,1744007479026,-500.0,0.00040273,7]
[357330805,1744007479040,-1951.0,0.00040273,7]
[357330806,1744007479050,-1564.82,0.00040273,7]
[357330807,1744007479060,-720.69,0.00040273,7]
[357330808,1744007479070,-603.99,0.00040273,7]
[357330809,1744007479080,-1960.56,0.00040273,7]
[357330811,1744007479090,-500.0,0.00040273,7]
[357330813,1744007479100,-1748.88,0.00040273,7]
[357330814,1744007479110,-500.0,0.00040273,7]
[357330816,1744007479119,-500.0,0.00040273,7]
[357330818,1744007479129,-2029.77,0.00040273,7]
[357330819,1744007479139,-500.0,0.00040273,7]
[357330821,1744007479149,-1368.39,0.00040273,2]
[357330822,1744007479159,-588.58,0.00040273,7]
[357330823,1744007479169,-601.11,0.00040273,7]
[357330824,1744007479179,-500.0,0.00040273,7]
[357330825,1744007479189,-500.0,0.00040273,7]
[357330826,1744007479199,-1802.77,0.00040273,7]
[357330827,1744007479211,-638.37,0.00040273,7]
[357330828,1744007479221,-504.30573399,0.00040273,7]
[357330829,1744007479231,-3642.09,0.00040273,7]
[357330830,1744007479241,-1347.37,0.00040273,7]
[357330831,1744007479252,-1391.95,0.00040273,7]
[357330832,1744007479264,-500.0,0.00040273,7]
[357330833,1744007479274,-2126.62,0.00040273,7]
[357330834,1744007479285,-796.84,0.00040273,7]
[357330835,1744007479295,-617.31,0.00040273,7]
[357330837,1744007479306,-5186.58,0.00040273,7]
[357330839,1744007479315,-1111.1,0.00040273,7]
[357330840,1744007479325,-1058.19,0.00040273,7]
[357330842,1744007479335,-7684.6,0.00040273,7]
[357330844,1744007479345,-500.0,0.00040273,7]
[357330846,1744007479355,-781.69,0.00040273,7]
[357330848,1744007479365,-503.58,0.00040273,7]
[357330850,1744007479375,-500.0,0.00040273,7]
[357330852,1744007479385,-526.85,0.00040273,7]
[357330854,1744007479394,-500.0,0.00040273,7]
[357330856,1744007479404,-500.0,0.00040273,7]
[357330858,1744007479414,-6861.13,0.00040273,7]
[357330860,1744007479423,-500.0,0.00040273,7]
[357330862,1744007479433,-500.0,0.00040273,7]
[357330864,1744007479443,-500.0,0.00040273,7]
[357330866,1744007479453,-500.0,0.00040273,7]
[357330868,1744007479462,-500.0,0.00040273,7]
[357330870,1744007479471,-7716.74,0.00040273,7]
[357330872,1744007479481,-500.0,0.00040273,7]
[357330874,1744007479490,-2269.56,0.00040273,7]
[357330875,1744007479499,-500.0,0.00040273,7]
[357330877,1744007479508,-4907.12,0.00040273,7]
[357330879,1744007479518,-504.85,0.00040273,7]
[357330881,1744007479527,-500.0,0.00040273,7]
[357330883,1744007479539,-500.0,0.00040273,7]
[357330885,1744007479548,-542.23,0.00040273,7]
[357330887,1744007479557,-500.0,0.00040273,7]
[357330889,1744007479567,-2640.34,0.00040273,7]
[357330891,1744007479577,-2111.69,0.00040273,7]
[357330893,1744007479587,-500.0,0.00040273,7]
[357330895,1744007479598,-500.0,0.00040273,7]
[357330897,1744007479608,-1000.0,0.00040273,3]
[357330899,1744007479618,-2900.21,0.00040273,7]
[357330901,1744007479628,-500.0,0.00040273,7]
[357330903,1744007479638,-754.1,0.00040273,7]
[357330904,1744007479648,-500.0,0.00040273,7]
[357330906,1744007479662,-500.0,0.00040273,7]
[357330908,1744007479671,-582.6,0.00040273,7]
[357330910,1744007479681,-726.72,0.00040273,7]
[357330911,1744007479690,-904.26,0.00040273,7]
[357330912,1744007479701,-500.0,0.00040273,7]
[357330913,1744007479713,-500.0,0.00040273,7]
[357330914,1744007479723,-853.72,0.00040273,7]
[357330915,1744007479732,-564.13,0.00040273,7]
[357330916,1744007479742,-17236.37,0.00040273,7]
[357330918,1744007479753,-1442.71,0.00040273,7]
[357330919,1744007479762,-520.98,0.00040273,7]
[357330921,1744007479772,-500.0,0.00040273,7]
[357330923,1744007479783,-3459.37,0.00040273,7]
[357330925,1744007479792,-500.0,0.00040273,7]
[357330927,1744007479802,-500.0,0.00040273,7]
[357330928,1744007479811,-500.0,0.00040273,7]
[357330930,1744007479820,-1195.35,0.00040273,7]
[357330932,1744007479830,-441.21632218,0.00040273,7]
[357330934,1744007479839,-500.0,0.00040273,7]
[357330936,1744007479848,-739.23,0.00040273,7]
[357330937,1744007479858,-500.0,0.00040273,7]
[357330939,1744007479868,-1037.89,0.00040273,7]
[357330940,1744007479877,-931.74,0.00040273,7]
[357330942,1744007479887,-500.0,0.00040273,7]
[357330943,1744007479896,-593.51326274,0.00040273,7]
[357330944,1744007479906,-500.0,0.00040273,7]
[357330945,1744007479916,-160.0,0.0004034,3]
[357330946,1744007479925,-800.0,0.0004039,7]
[357330947,1744007479935,-160.83150465,0.00040411,7]
[357330948,1744007479945,-500.0,0.00040411,7]
[357330949,1744007479955,-500.0,0.00040411,7]
[357330950,1744007479964,-500.0,0.00040411,7]
[357330951,1744007479979,-500.0,0.00040411,7]
[357330952,1744007479990,-812.34,0.00040547,7]
[357330953,1744007480000,-500.0,0.00040547,7]
[357330954,1744007480009,-729.06,0.00040547,7]
[357330955,1744007480019,-500.0,0.00040547,7]
[357330956,1744007480029,-500.0,0.00040547,7]
[357330957,1744007480042,-500.0,0.00040547,7]
[357330958,1744007480052,-500.0,0.00040547,7]
[357330959,1744007480062,-736.69,0.00040547,7]
[357330961,1744007480073,-500.0,0.00040547,7]
[357330962,1744007480083,-500.0,0.00040547,7]
[357330963,1744007480092,-500.0,0.00040547,7]
[357330964,1744007480102,-500.0,0.00040547,7]
[357330965,1744007480113,-426.55138151,0.00040547,7]
[357330966,1744007480124,-500.0,0.00040547,7]
[357330967,1744007480134,-500.0,0.00040547,7]
[357330968,1744007480144,-500.0,0.00040547,7]
[357330970,1744007480153,-500.0,0.00040547,7]
[357330972,1744007480163,-500.0,0.00040547,7]
[357330974,1744007480173,-500.0,0.00040547,7]
[357330976,1744007480183,-500.0,0.00040547,7]
[357330978,1744007480193,-613.62791432,0.00040547,7]
[357330980,1744007480202,-500.0,0.00040547,7]
[357330982,1744007480212,-867.45,0.00040547,7]
[357330984,1744007480222,-500.0,0.00040547,7]
[357330986,1744007480232,-500.0,0.00040547,7]
[357330988,1744007480242,-500.0,0.00040547,7]
[357330990,1744007480251,-214.38290219,0.00040547,7]
[357330992,1744007480260,-500.0,0.00040547,7]
[357330994,1744007480269,-500.0,0.00040547,7]
[357330996,1744007480278,-500.0,0.00040547,7]
[357330998,1744007480292,-533.35,0.00040547,7]
[357331000,1744007480302,-906.27,0.00040547,7]
[357331002,1744007480312,-670.8,0.00040547,7]
[357331004,1744007480321,-500.0,0.00040547,7]
[357331006,1744007480331,-500.0,0.00040547,7]
[357331008,1744007480340,-517.39,0.00040547,7]
[357331010,1744007480349,-500.0,0.00040547,7]
[357331011,1744007480358,-500.0,0.00040547,7]
[357331014,1744007480368,-534.6,0.00040547,7]
[357331016,1744007480379,-500.0,0.00040547,7]
[357331017,1744007480389,-1086.53,0.00040547,7]
[357331019,1744007480398,-576.65,0.00040547,7]
[357331021,1744007480408,-500.0,0.00040547,7]
[357331023,1744007480418,-500.0,0.00040547,7]
[357331026,1744007480428,-500.0,0.00040547,7]
[357331028,1744007480439,-500.0,0.00040547,7]
[357331030,1744007480448,-500.0,0.00040547,7]
[357331032,1744007480457,-500.0,0.00040547,7]
[357331033,1744007480467,-500.0,0.00040547,7]
[357331035,1744007480478,-500.0,0.00040547,7]
[357331037,1744007480487,-1107.37,0.00040547,7]
[357331039,1744007480496,-500.0,0.00040547,7]
[357331041,1744007480506,-1447.2,0.00040547,7]
[357331044,1744007480517,-500.0,0.00040547,7]
[357331046,1744007480527,-513.43,0.00040547,7]
[357331047,1744007480542,-500.0,0.00040547,7]
[357331050,1744007480552,-539.42784813,0.00040547,7]
[357331051,1744007480562,-566.61,0.00040547,7]
[357331054,1744007480572,-939.19,0.00040547,7]
[357331056,1744007480582,-1423.54,0.00040547,7]
[357331058,1744007480592,-2008.01,0.00040547,7]
[357331060,1744007480602,-1800.94,0.00040547,7]
[357331062,1744007480613,-901.74,0.00040547,7]
[357331064,1744007480623,-500.0,0.00040547,7]
[357331066,1744007480633,-749.66,0.00040547,7]
[357331068,1744007480645,-500.0,0.00040547,7]
[357331070,1744007480655,-500.0,0.00040547,7]
[357331072,1744007480666,-500.0,0.00040547,7]
[357331074,1744007480678,-697.53,0.00040547,7]
[357331076,1744007480688,-500.0,0.00040547,7]
[357331078,1744007480698,-934.77,0.00040547,7]
[357331080,1744007480707,-511.45657924,0.00040547,7]
[357331082,1744007480718,-500.0,0.00040547,7]
[357331084,1744007480727,-1984.09,0.00040547,7]
[357331086,1744007480737,-946.46,0.00040547,7]
[357331088,1744007480746,-935.62,0.00040547,7]
[357331090,1744007480756,-500.0,0.00040547,7]
[357331092,1744007480766,-500.0,0.00040547,7]
[357331094,1744007480775,-515.1,0.00040547,7]
[357331096,1744007480789,-512.76,0.00040547,7]
[357331098,1744007480799,-500.0,0.00040547,7]
[357331100,1744007480809,-690.44,0.00040547,7]
[357331102,1744007480818,-838.21,0.00040547,7]
[357331104,1744007480828,-847.87,0.00040547,7]
[357331106,1744007480837,-1589.02,0.00040547,7]
[357331108,1744007480847,-500.0,0.00040547,7]
[357331110,1744007480856,-500.0,0.00040547,7]
[357331112,1744007480866,-500.0,0.00040547,7]
[357331114,1744007480877,-500.0,0.00040547,7]
[357331116,1744007480887,-1158.58,0.00040547,7]
[357331118,1744007480896,-500.0,0.00040547,7]
[357331120,1744007480906,-952.13,0.00040547,7]
[357331122,1744007480916,-573.45,0.00040547,7]
[357331124,1744007480926,-500.0,0.00040547,7]
[357331126,1744007480936,-1057.47,0.00040547,7]
[357331128,1744007480946,-500.0,0.00040547,7]
[357331130,1744007480955,-500.0,0.00040547,7]
[357331132,1744007480965,-509.21008158,0.00040547,7]
[357331134,1744007480975,-694.43,0.00040547,7]
[357331136,1744007480985,-500.0,0.00040547,7]
[357331138,1744007480995,-500.0,0.00040547,7]
[357331140,1744007481004,-571.11,0.00040547,7]
[357331142,1744007481014,-500.0,0.00040547,7]
[357331144,1744007481025,-528.03,0.00040547,7]
[357331145,1744007481038,-500.0,0.00040547,7]
[357331146,1744007481048,-613.99,0.00040547,7]
[357331147,1744007481057,-517.38544005,0.00040547,7]
[357331149,1744007481067,-1665.49,0.00040547,7]
[357331151,1744007481076,-928.88,0.00040547,7]
[357331153,1744007481085,-772.18,0.00040547,7]
[357331155,1744007481095,-500.0,0.00040547,7]
[357331157,1744007481104,-500.0,0.00040547,7]
[357331159,1744007481113,-500.0,0.00040547,7]
[357331161,1744007481123,-500.0,0.00040547,7]
[357331163,1744007481132,-1501.09,0.00040547,2]
[357331165,1744007481142,-586.05,0.00040547,7]
[357331167,1744007481151,-722.91,0.00040547,7]
[357331169,1744007481160,-1033.34,0.00040547,7]
[357331171,1744007481170,-500.0,0.00040547,7]
[357331173,1744007481180,-522.77,0.00040547,7]
[357331175,1744007481189,-500.0,0.00040547,7]
[357331177,1744007481198,-571.83,0.00040547,7]
[357331179,1744007481207,-500.0,0.00040547,7]
[357331181,1744007481217,-523.84,0.00040547,7]
[357331183,1744007481226,-500.0,0.00040547,7]
[357331185,1744007481236,-500.0,0.00040547,7]
[357331187,1744007481245,-500.0,0.00040547,7]
[357331189,1744007481254,-500.0,0.00040547,7]
[357331191,1744007481264,-833.69,0.00040547,7]
[357331193,1744007481273,-500.0,0.00040547,7]
[357331195,1744007481287,-2025.36,0.00040547,7]
[357331197,1744007481297,-500.0,0.00040547,7]
[357331199,1744007481307,-500.0,0.00040547,7]
[357331214,1744007481439,-1592.74,0.00040547,7]
[357331216,1744007481450,-603.67,0.00040547,7]
[357331218,1744007481459,-500.0,0.00040547,7]
[357331220,1744007481468,-2054.09,0.00040547,7]
[357331222,1744007481477,-500.0,0.00040547,7]
[357331224,1744007481486,-500.0,0.00040547,7]
[357331226,1744007481495,-4027.87,0.00040547,7]
[357331228,1744007481505,-1703.64,0.00040547,7]
[357331230,1744007481514,-1206.14,0.00040547,7]
[357331232,1744007481523,-2750.5,0.00040547,7]
[357331234,1744007481536,-5383.4,0.00040547,7]
[357331236,1744007481545,-500.0,0.00040547,7]
[357331238,1744007481555,-1044.92,0.00040547,7]
[357331240,1744007481564,-752.29,0.00040547,7]
[357331242,1744007481573,-5668.81,0.00040547,7]
[357331244,1744007481583,-556.96,0.00040547,7]
[357331246,1744007481593,-16324.2,0.00040547,7]
[357331248,1744007481602,-9467.87,0.00040547,7]
[357331250,1744007481612,-500.0,0.00040547,7]
[357331252,1744007481621,-704.24,0.00040547,7]
[357331254,1744007481632,-2032.66,0.00040547,7]
[357331256,1744007481641,-7826.43,0.00040547,7]
[357331258,1744007481651,-627.1,0.00040547,7]
[357331260,1744007481660,-512.17622181,0.00040547,7]
[357331262,1744007481672,-1951.0,0.00040547,7]
[357331264,1744007481681,-1564.82,0.00040547,7]
[357331266,1744007481691,-720.69,0.00040547,7]
[357331268,1744007481699,-603.99,0.00040547,7]
[357331270,1744007481710,-500.0,0.00040547,7]
[357331272,1744007481719,-1960.56,0.00040547,7]
[357331274,1744007481728,-1748.88,0.00040547,7]
[357331276,1744007481738,-504.71565948,0.00040547,7]
[357331279,1744007481748,-500.0,0.00040547,7]
[357331280,1744007481757,-2029.77,0.00040547,7]
[357331283,1744007481766,-500.0,0.00040547,7]
[357331285,1744007481776,-1368.39,0.00040547,2]
[357331287,1744007481788,-588.58,0.00040547,7]
[357331289,1744007481798,-601.11,0.00040547,7]
[357331290,1744007481807,-500.0,0.00040547,7]
[357331293,1744007481817,-500.0,0.00040547,7]
[357331295,1744007481827,-1802.77,0.00040547,7]
[357331296,1744007481836,-638.37,0.00040547,7]
[357331299,1744007481846,-3642.09,0.00040547,7]
[357331300,1744007481856,-1347.37,0.00040547,7]
[357331303,1744007481865,-1391.95,0.00040547,7]
[357331305,1744007481875,-500.0,0.00040547,7]
[357331307,1744007481884,-2126.62,0.00040547,7]
[357331309,1744007481893,-796.84,0.00040547,7]
[357331311,1744007481903,-617.31,0.00040547,7]
[357331313,1744007481913,-5186.58,0.00040547,7]
[357331315,1744007481922,-1111.1,0.00040547,7]
[357331317,1744007481932,-1058.19,0.00040547,7]
[357331319,1744007481941,-7684.6,0.00040547,7]
[357331321,1744007481951,-781.69,0.00040547,7]
[357331323,1744007481960,-503.58,0.00040547,7]
[357331325,1744007481970,-500.0,0.00040547,7]
[357331327,1744007481981,-526.85,0.00040547,7]
[357331329,1744007481990,-500.0,0.00040547,7]
[357331331,1744007481999,-500.0,0.00040547,7]
[357331333,1744007482009,-6861.13,0.00040547,7]
[357331335,1744007482018,-271.32421057,0.00040547,7]
[357331336,1744007482028,-500.0,0.00040547,7]
[357331338,1744007482042,-500.0,0.00040547,7]
[357331340,1744007482051,-500.0,0.00040547,7]
[357331342,1744007482060,-7716.74,0.00040547,7]
[357331344,1744007482070,-500.0,0.00040547,7]
[357331346,1744007482079,-2269.56,0.00040547,7]
[357331348,1744007482088,-500.0,0.00040547,7]
[357331350,1744007482098,-4907.12,0.00040547,7]
[357331352,1744007482108,-504.85,0.00040547,7]
[357331354,1744007482118,-500.0,0.00040547,7]
[357331356,1744007482128,-163.09890732,0.00040547,7]
[357331358,1744007482138,-542.23,0.00040547,7]
[357331361,1744007482147,-537.8536956,0.00040547,7]
[357331363,1744007482157,-2640.34,0.00040547,7]
[357331364,1744007482166,-2111.69,0.00040547,7]
[357331366,1744007482175,-500.0,0.00040547,7]
[357331369,1744007482185,-500.0,0.00040547,7]
[357331370,1744007482195,-1000.0,0.00040547,3]
[357331373,1744007482204,-2900.21,0.00040547,7]
[357331375,1744007482214,-500.0,0.00040547,7]
[357331377,1744007482224,-507.94268925,0.00040547,7]
[357331379,1744007482233,-754.1,0.00040547,7]
[357331381,1744007482242,-500.0,0.00040547,7]
[357331382,1744007482252,-582.6,0.00040547,7]
[357331385,1744007482262,-726.72,0.00040547,7]
[357331387,1744007482275,-904.26,0.00040547,7]
[357331389,1744007482297,-500.0,0.00040547,7]
[357331391,1744007482307,-548.35859505,0.00040547,7]
[357331393,1744007482317,-853.72,0.00040547,7]
[357331395,1744007482327,-564.13,0.00040547,7]
[357331397,1744007482337,-17236.37,0.00040547,7]
[357331399,1744007482346,-1442.71,0.00040547,7]
[357331401,1744007482357,-520.98,0.00040547,7]
[357331403,1744007482367,-500.0,0.00040547,7]
[357331405,1744007482376,-3459.37,0.00040547,7]
[357331407,1744007482385,-500.0,0.00040547,7]
[357331409,1744007482399,-500.0,0.00040547,7]
[357331411,1744007482409,-500.0,0.00040547,7]
[357331413,1744007482419,-1195.35,0.00040547,7]
[357331415,1744007482427,-500.0,0.00040547,7]
[357331417,1744007482437,-739.23,0.00040547,7]
[357331419,1744007482446,-500.0,0.00040547,7]
[357331421,1744007482456,-931.74,0.00040547,7]
[357331423,1744007482466,-1037.89,0.00040547,7]
[357331425,1744007482475,-500.0,0.00040547,7]
[357331427,1744007482485,-500.0,0.00040547,7]
[357331429,1744007482495,-450.0,0.00040616,2]
[357331431,1744007482504,-373.75,0.00040643,120]
[357331433,1744007482513,-800.0,0.00040685,7]
[357331435,1744007482523,-800.0,0.00040706,7]
[357331437,1744007482536,-812.34,0.00040821,7]
[357331439,1744007482547,-500.0,0.00040821,7]
[357331441,1744007482557,-729.06,0.00040821,7]
[357331443,1744007482566,-500.0,0.00040821,7]
[357331445,1744007482576,-500.0,0.00040821,7]
[357331447,1744007482586,-500.0,0.00040821,7]
[357331449,1744007482596,-500.0,0.00040821,7]
[357331451,1744007482605,-736.69,0.00040821,7]
[357331453,1744007482615,-500.0,0.00040821,7]
[357331455,1744007482624,-377.58411652,0.00040821,7]
[357331457,1744007482634,-500.0,0.00040821,7]
[357331459,1744007482643,-500.0,0.00040821,7]
[357331461,1744007482655,-154.05520516,0.00040821,7]
[357331463,1744007482667,-500.0,0.00040821,7]
[357331465,1744007482676,-500.0,0.00040821,7]
[357331467,1744007482685,-500.0,0.00040821,7]
[357331469,1744007482695,-558.9873433,0.00040821,7]
[357331471,1744007482705,-500.0,0.00040821,7]
[357331473,1744007482715,-500.0,0.00040821,7]
[357331475,1744007482724,-867.45,0.00040821,7]
[357331477,1744007482734,-500.0,0.00040821,7]
[357331479,1744007482744,-500.0,0.00040821,7]
[357331481,1744007482754,-500.0,0.00040821,7]
[357331483,1744007482764,-500.0,0.00040821,7]
[357331485,1744007482774,-500.0,0.00040821,7]
[357331487,1744007482788,-500.0,0.00040821,7]
[357331489,1744007482797,-533.35,0.00040821,7]
[357331491,1744007482807,-906.27,0.00040821,7]
[357331493,1744007482816,-670.8,0.00040821,7]
[357331495,1744007482825,-369.12407938,0.00040821,7]
[357331497,1744007482835,-599.87181166,0.00040821,7]
[357331499,1744007482844,-517.39,0.00040821,7]
[357331501,1744007482854,-500.0,0.00040821,7]
[357331503,1744007482863,-500.0,0.00040821,7]
[357331505,1744007482873,-534.6,0.00040821,7]
[357331507,1744007482882,-500.0,0.00040821,7]
[357331509,1744007482892,-1086.53,0.00040821,7]
[357331511,1744007482901,-576.65,0.00040821,7]
[357331513,1744007482911,-500.0,0.00040821,7]
[357331515,1744007482921,-500.0,0.00040821,7]
[357331517,1744007482930,-500.0,0.00040821,7]
[357331519,1744007482940,-500.0,0.00040821,7]
[357331521,1744007482949,-500.0,0.00040821,7]
[357331523,1744007482959,-500.0,0.00040821,7]
[357331525,1744007482968,-500.0,0.00040821,7]
[357331527,1744007482978,-500.0,0.00040821,7]
[357331529,1744007482987,-1107.37,0.00040821,7]
[357331531,1744007482998,-500.0,0.00040821,7]
[357331533,1744007483007,-1447.2,0.00040821,7]
[357331535,1744007483017,-512.10480389,0.00040821,7]
[357331537,1744007483027,-513.43,0.00040821,7]
[357331540,1744007483041,-500.0,0.00040821,7]
[357331542,1744007483051,-566.61,0.00040821,7]
[357331544,1744007483061,-939.19,0.00040821,7]
[357331546,1744007483070,-1423.54,0.00040821,7]
[357331548,1744007483080,-2008.01,0.00040821,7]
[357331550,1744007483090,-1800.94,0.00040821,7]
[357331552,1744007483099,-901.74,0.00040821,7]
[357331554,1744007483109,-500.0,0.00040821,7]
[357331556,1744007483119,-749.66,0.00040821,7]
[357331558,1744007483128,-500.0,0.00040821,7]
[357331560,1744007483138,-500.0,0.00040821,7]
[357331562,1744007483148,-500.0,0.00040821,7]
[357331564,1744007483157,-697.53,0.00040821,7]
[357331566,1744007483166,-500.0,0.00040821,7]
[357331568,1744007483176,-934.77,0.00040821,7]
[357331570,1744007483185,-500.0,0.00040821,7]
[357331572,1744007483194,-1984.09,0.00040821,7]
[357331574,1744007483204,-935.62,0.00040821,7]
[357331576,1744007483213,-946.46,0.00040821,7]
[357331578,1744007483223,-500.0,0.00040821,7]
[357331580,1744007483232,-500.0,0.00040821,7]
[357331582,1744007483242,-515.1,0.00040821,7]
[357331584,1744007483251,-512.76,0.00040821,7]
[357331586,1744007483261,-500.0,0.00040821,7]
[357331588,1744007483270,-690.44,0.00040821,7]
[357331590,1744007483280,-838.21,0.00040821,7]
[357331592,1744007483294,-847.87,0.00040821,7]
[357331594,1744007483303,-1589.02,0.00040821,7]
[357331596,1744007483313,-500.0,0.00040821,7]
[357331598,1744007483322,-500.0,0.00040821,7]
[357331600,1744007483332,-500.0,0.00040821,7]
[357331602,1744007483342,-500.0,0.00040821,7]
[357331604,1744007483351,-1158.58,0.00040821,7]
[357331605,1744007483362,-500.0,0.00040821,7]
[357331607,1744007483373,-952.13,0.00040821,7]
[357331609,1744007483383,-573.45,0.00040821,7]
[357331611,1744007483392,-500.0,0.00040821,7]
[357331613,1744007483402,-1057.47,0.00040821,7]
[357331615,1744007483411,-500.0,0.00040821,7]
[357331617,1744007483420,-500.0,0.00040821,7]
[357331619,1744007483430,-694.43,0.00040821,7]
[357331621,1744007483439,-500.0,0.00040821,7]
[357331623,1744007483449,-500.0,0.00040821,7]
[357331625,1744007483459,-571.11,0.00040821,7]
[357331627,1744007483469,-500.0,0.00040821,7]
[357331629,1744007483479,-528.03,0.00040821,7]
[357331631,1744007483488,-500.0,0.00040821,7]
[357331633,1744007483498,-613.99,0.00040821,7]
[357331635,1744007483508,-1665.49,0.00040821,7]
[357331637,1744007483517,-928.88,0.00040821,7]
[357331639,1744007483527,-772.18,0.00040821,7]
[357331641,1744007483541,-500.0,0.00040821,7]
[357331643,1744007483551,-500.0,0.00040821,7]
[357331645,1744007483562,-500.0,0.00040821,7]
[357331647,1744007483572,-500.0,0.00040821,7]
[357331649,1744007483582,-1501.09,0.00040821,2]
[357331651,1744007483592,-586.05,0.00040821,7]
[357331653,1744007483602,-722.91,0.00040821,7]
[357331655,1744007483612,-1033.34,0.00040821,7]